bitfinex-derivatives/quotes_BNBF0:USTF0_20260114
["timestamp","ask_amount","ask_price","bid_price","bid_amount"]
[1768400668116,0.77201887,938.41,936.72,2.6446399]
[1768400668313,0.77201887,938.4,936.72,2.6446399]
[1768400668515,0.77201887,938.39,936.72,2.6446399]
[1768400668716,0.77201887,938.38,936.74,2.6446399]
[1768400668918,1.576,938.47,936.74,2.6446399]
[1768400668919,0.77201887,938.37,936.74,2.6446399]
[1768400669215,0.77201887,938.36,936.75,2.6446399]
[1768400669414,0.77201887,938.35,936.75,2.6446399]
[1768400669619,0.77201887,938.34,936.75,2.6446399]
[1768400669817,0.77201887,938.33,936.78,2.6446399]
[1768400670115,0.77201887,938.32,936.78,2.6446399]
[1768400670315,0.77201887,938.31,936.79,2.6446399]
[1768400670513,0.77201887,938.3,936.79,2.6446399]
[1768400670717,0.77201887,938.29,936.79,2.6446399]
[1768400670918,0.77201887,938.28,936.8,2.6446399]
[1768400671217,0.77201887,938.27,936.8,2.6446399]
[1768400671417,0.77201887,938.26,936.8,2.6446399]
[1768400671612,0.77201887,938.25,936.8,2.6446399]
[1768400671813,0.77201887,938.24,936.82,2.6446399]
[1768400672015,0.77201887,938.23,936.82,2.6446399]
[1768400672317,0.77201887,938.22,936.84,2.6446399]
[1768400672519,0.77201887,938.21,936.84,2.6446399]
[1768400672715,0.77201887,938.2,936.84,2.6446399]
[1768400672914,0.77201887,938.19,936.84,2.6446399]
[1768400673114,0.77201887,938.18,936.84,2.6446399]
[1768400673315,0.77201887,938.17,936.85,2.6446399]
[1768400673518,0.77201887,938.16,936.85,2.6446399]
[1768400673714,0.77201887,938.15,936.85,2.6446399]
[1768400674016,0.77201887,938.14,936.84,2.6446399]
[1768400674214,0.77201887,938.13,936.84,2.6446399]
[1768400674418,0.77201887,938.12,936.85,2.6446399]
[1768400674620,0.77201887,938.11,936.85,2.6446399]
[1768400674819,0.77201887,938.1,936.85,2.6446399]
[1768400675020,0.77201887,938.09,936.85,2.6446399]
[1768400675214,0.77201887,938.08,936.85,2.6446399]
[1768400675419,0.77201887,938.07,936.83,2.6446399]
[1768400675620,0.77201887,938.06,936.83,2.6446399]
[1768400675815,0.77201887,938.05,936.83,2.6446399]
[1768400676020,0.77201887,938.04,936.83,2.6446399]
[1768400676217,0.77201887,938.03,936.83,2.6446399]
[1768400676427,0.18547141,939.14,936.83,2.6446399]
[1768400676626,0.18547141,939.14,935.59,0.1855901]
[1768400676627,0.77328307,939.13,935.59,0.1855901]
[1768400676923,0.77328307,939.12,936.83,2.6334802]
[1768400677125,0.18547141,939.14,936.83,2.6334802]
[1768400677126,0.77328307,939.11,936.83,2.6334802]
[1768400677328,0.77328307,939.1,936.83,2.6334802]
[1768400677528,0.77328307,939.09,936.83,2.6334802]
[1768400677724,0.77328307,939.08,936.83,2.6334802]
[1768400677928,0.77328307,939.07,936.83,2.6334802]
[1768400678128,0.77328307,939.06,936.83,2.6334802]
[1768400678429,0.77328307,939.05,936.83,2.6334802]
[1768400678626,0.77328307,939.04,936.83,2.6334802]
[1768400678830,0.77328307,939.03,936.83,2.6334802]
[1768400679028,0.77328307,939.02,936.83,2.6334802]
[1768400679229,0.77328307,939.01,936.83,2.6334802]
[1768400679428,0.77328307,939.0,936.84,2.6334802]
[1768400679628,0.77328307,938.99,936.84,2.6334802]
[1768400679830,0.77328307,938.98,936.85,2.6334802]
[1768400680027,0.77328307,938.97,936.85,2.6334802]
[1768400680229,0.77328307,938.96,936.85,2.6334802]
[1768400680432,0.77328307,938.95,936.85,2.6334802]
[1768400680730,0.77328307,938.94,936.85,2.6334802]
[1768400680932,0.77328307,938.93,936.85,2.6334802]
[1768400681131,0.77328307,938.92,936.85,2.6334802]
[1768400681429,0.77328307,938.91,936.85,2.6334802]
[1768400681629,0.77328307,938.9,936.85,2.6334802]
[1768400681829,0.77328307,938.89,936.85,2.6334802]
[1768400682131,0.77328307,938.88,936.85,2.6334802]
[1768400682327,0.77328307,938.87,936.85,2.6334802]
[1768400682527,0.77328307,938.86,936.85,2.6334802]
[1768400682728,0.77328307,938.85,936.85,2.6334802]
[1768400682931,0.77328307,938.84,936.85,2.6334802]
[1768400683131,0.77328307,938.83,936.85,2.6334802]
[1768400683334,0.77328307,938.82,936.85,2.6334802]
[1768400683630,0.77328307,938.81,936.85,2.6334802]
[1768400683945,0.77328307,938.8,936.85,2.6334802]
[1768400684230,0.77328307,938.79,936.85,2.6334802]
[1768400684430,0.77328307,938.78,936.85,2.6334802]
[1768400684630,0.77328307,938.77,936.86,2.6334802]
[1768400684933,0.77328307,938.76,936.86,2.6334802]
[1768400685135,0.77328307,938.75,936.86,2.6334802]
[1768400685336,0.77328307,938.74,936.86,2.6334802]
[1768400685533,0.77328307,938.73,936.96,2.6334802]
[1768400685737,0.77328307,938.72,936.96,2.6334802]
[1768400685931,0.77328307,938.71,936.96,2.6334802]
[1768400686235,0.77328307,938.7,936.96,2.6334802]
[1768400686431,0.77328307,938.69,936.96,2.6334802]
[1768400686636,0.77328307,938.68,936.96,2.6334802]
[1768400686936,0.77328307,938.67,936.96,2.6334802]
[1768400687132,0.77328307,938.66,936.96,2.6334802]
[1768400687336,0.77328307,938.65,936.96,2.6334802]
[1768400687536,0.77328307,938.64,936.96,2.6334802]
[1768400687736,0.77328307,938.63,936.96,2.6334802]
[1768400687938,0.77328307,938.62,936.96,2.6334802]
[1768400688138,0.77328307,938.61,936.96,2.6334802]
[1768400688334,0.77328307,938.6,936.96,2.6334802]
[1768400688639,0.77328307,938.59,936.96,2.6334802]
[1768400688838,0.77328307,938.58,936.96,2.6334802]
[1768400689036,0.77328307,938.57,936.96,2.6334802]
[1768400689236,0.77328307,938.56,936.96,2.6334802]
[1768400689435,0.77328307,938.55,936.96,2.6334802]
[1768400689642,0.77328307,938.54,936.96,2.6334802]
[1768400689840,0.77328307,938.53,936.96,2.6334802]
[1768400690038,0.77328307,938.52,936.96,2.6334802]
[1768400690243,0.77328307,938.51,936.96,2.6334802]
[1768400690544,0.77328307,938.5,936.96,2.6334802]
[1768400690839,0.77328307,938.49,936.92,2.6334802]
[1768400691042,0.77328307,938.48,936.92,2.6334802]
[1768400691243,0.77328307,938.47,936.92,2.6334802]
[1768400691439,0.77328307,938.46,936.92,2.6334802]
[1768400691644,0.77328307,938.45,936.92,2.6334802]
[1768400691842,0.77328307,938.44,936.93,2.6334802]
[1768400692046,0.77328307,938.43,936.93,2.6334802]
[1768400692245,0.77328307,938.42,936.93,2.6334802]
[1768400692445,0.77328307,938.41,936.93,2.6334802]
[1768400692647,0.77328307,938.4,936.93,2.6334802]
[1768400692843,0.77328307,938.39,936.93,2.6334802]
[1768400693043,0.77328307,938.38,936.93,2.6334802]
[1768400693244,0.77328307,938.37,936.93,2.6334802]
[1768400693546,0.77328307,938.36,936.93,2.6334802]
[1768400693843,0.77328307,938.35,936.93,2.6334802]
[1768400694048,0.77328307,938.34,936.93,2.6334802]
[1768400694247,0.77328307,938.33,936.93,2.6334802]
[1768400694444,0.77328307,938.32,936.93,2.6334802]
[1768400694648,0.77328307,938.31,936.93,2.6334802]
[1768400694943,0.77328307,938.3,936.93,2.6334802]
[1768400695144,0.77328307,938.29,936.93,2.6334802]
[1768400695347,0.77384625,938.28,936.93,2.6334802]
[1768400695548,0.77384625,938.27,936.94,2.6334802]
[1768400695749,0.77384625,938.26,936.94,2.6334802]
[1768400696049,0.77384625,938.25,936.94,2.6334802]
[1768400696246,0.77384625,938.24,936.94,2.6334802]
[1768400696444,0.77384625,938.23,936.95,2.6334802]
[1768400696646,0.77384625,938.22,936.95,2.6334802]
[1768400696944,0.77384625,938.21,936.95,2.6334802]
[1768400697146,0.77384625,938.2,936.95,2.6334802]
[1768400697345,0.77384625,938.19,936.95,2.6334802]
[1768400697548,0.77384625,938.18,936.96,2.6334802]
[1768400697745,0.77384625,938.17,936.96,2.6334802]
[1768400697947,1.713,938.95,936.96,2.6334802]
[1768400697948,0.77384625,938.16,936.96,2.6334802]
[1768400698150,0.77384625,938.15,936.96,2.6334802]
[1768400698347,0.77384625,938.14,936.96,2.6334802]
[1768400698649,0.77384625,938.13,936.96,2.6334802]
[1768400698852,0.77384625,938.12,936.96,2.6334802]
[1768400699153,0.77384625,938.11,936.96,2.6334802]
[1768400699352,0.77384625,938.1,936.96,2.6334802]
[1768400699552,0.77384625,938.09,936.96,2.6334802]
[1768400699748,0.77384625,938.08,936.96,2.6334802]
[1768400699952,0.77384625,938.07,936.96,2.6334802]
[1768400700151,0.77384625,938.06,936.94,2.6334802]
[1768400700355,0.77384625,938.05,936.94,2.6334802]
[1768400700656,0.77384625,938.04,936.92,2.6334802]
[1768400700954,0.77384625,938.03,936.92,2.6334802]
[1768400701152,0.77384625,938.02,936.92,2.6334802]
[1768400701352,0.77384625,938.01,936.92,2.6334802]
[1768400701655,0.77384625,938.0,936.77,2.6334802]
[1768400701955,0.77384625,937.99,936.77,2.6334802]
[1768400702156,0.77453364,937.98,936.75,2.6334802]
[1768400702456,0.77453364,937.97,936.75,2.6334802]
[1768400702756,0.77453364,937.96,936.74,2.6334802]
[1768400703056,0.77453364,937.95,936.74,2.6334802]
[1768400703353,0.77453364,937.94,936.74,2.6334802]
[1768400703556,0.77453364,937.93,936.74,2.6334802]
[1768400703757,0.77453364,937.92,936.65,2.6334802]
[1768400704056,0.77453364,937.91,936.65,2.6334802]
[1768400704258,0.77453364,937.9,936.65,2.6334802]
[1768400704557,0.77453364,937.89,936.65,2.6334802]
[1768400704758,0.77453364,937.88,936.63,2.6334802]
[1768400704958,0.77453364,937.87,936.63,2.6334802]
[1768400705254,0.77453364,937.86,936.63,2.6334802]
[1768400705454,0.77453364,937.85,936.63,2.6334802]
[1768400705660,0.77453364,937.84,936.63,2.6334802]
[1768400705958,0.77453364,937.83,936.64,2.6334802]
[1768400706160,0.77453364,937.82,936.64,2.6334802]
[1768400706460,0.77453364,937.81,936.64,2.6334802]
[1768400706761,0.01117841,938.77,936.65,2.6334802]
[1768400706957,0.7734872,938.76,936.65,2.6334802]
[1768400707161,0.7734872,938.75,936.65,2.6334802]
[1768400707362,0.7734872,938.74,936.65,2.6334802]
[1768400707663,0.7734872,938.73,936.65,2.6334802]
[1768400707957,0.7734872,938.72,936.64,2.6334802]
[1768400708158,0.7734872,938.71,936.64,2.6334802]
[1768400708362,0.7734872,938.7,936.63,2.6334802]
[1768400708661,0.7734872,938.69,936.63,2.6334802]
[1768400708961,0.7734872,938.68,936.63,2.6334802]
[1768400709161,0.7734872,938.67,936.63,2.6334802]
[1768400709359,0.7734872,938.66,936.61,2.6334802]
[1768400709561,0.7734872,938.65,936.61,2.6334802]
[1768400709760,0.7734872,938.64,936.61,2.6334802]
[1768400709961,0.7734872,938.63,936.61,2.6334802]
[1768400710162,0.7734872,938.62,936.5,2.6334802]
[1768400710362,0.7734872,938.61,936.5,2.6334802]
[1768400710560,0.7734872,938.6,936.48,2.6334802]
[1768400711160,0.7734872,938.6,936.49,2.6334802]
[1768400711460,1.713,938.95,936.49,2.6334802]
[1768400711665,1.713,938.95,936.47,2.6334802]
[1768400712164,0.77283871,938.94,936.54,2.6334802]
[1768400712360,0.77283871,938.93,936.54,2.6334802]
[1768400712562,0.77283871,938.92,936.54,2.6334802]
[1768400712761,0.77283871,938.91,936.54,2.6334802]
[1768400712965,0.77283871,938.9,936.54,2.6334802]
[1768400713167,0.77283871,938.89,936.54,2.6334802]
[1768400713464,0.77283871,938.88,936.54,2.6334802]
[1768400713764,0.77283871,938.87,936.53,2.6334802]
[1768400713967,0.77283871,938.86,936.53,2.6334802]
[1768400714265,0.77283871,938.85,936.53,2.6334802]
[1768400714465,0.77283871,938.84,936.53,2.6334802]
[1768400714669,0.77283871,938.83,936.53,2.6334802]
[1768400714867,0.77283871,938.82,936.53,2.6334802]
[1768400715064,0.77283871,938.81,936.53,2.6334802]
[1768400715266,0.77283871,938.8,936.53,2.6334802]
[1768400715467,0.77283871,938.79,936.53,2.6334802]
[1768400715668,0.77283871,938.78,936.53,2.6334802]
[1768400715868,0.77283871,938.77,936.6,2.6334802]
[1768400716065,0.77227351,938.76,936.6,2.6334802]
[1768400716270,0.77227351,938.75,936.6,2.6334802]
[1768400716465,0.77227351,938.74,936.6,2.6334802]
[1768400716669,0.77227351,938.73,936.6,2.6334802]
[1768400716871,0.77227351,938.72,936.6,2.6334802]
[1768400717068,0.77227351,938.71,936.6,2.6334802]
[1768400717267,0.77227351,938.7,936.6,2.6334802]
[1768400717571,0.77227351,938.69,936.55,2.6334802]
[1768400717767,0.77227351,938.68,936.55,2.6334802]
[1768400717968,0.77227351,938.67,936.55,2.6334802]
[1768400718167,0.77227351,938.66,936.55,2.6334802]
[1768400718366,0.77227351,938.65,936.55,2.6334802]
[1768400718673,1.713,938.95,936.55,2.6334802]
[1768400718873,0.77141242,938.94,936.55,2.6334802]
[1768400719172,0.77141242,938.93,936.55,2.6334802]
[1768400719367,0.77141242,938.92,936.55,2.6334802]
[1768400719668,0.77141242,938.91,936.55,2.6334802]
[1768400719873,0.77141242,938.9,936.54,2.6334802]
[1768400720072,0.77141242,938.89,936.54,2.6334802]
[1768400720271,0.77141242,938.88,936.54,2.6334802]
[1768400720468,0.77141242,938.87,936.54,2.6334802]
[1768400720668,0.77141242,938.86,936.54,2.6334802]
[1768400720872,0.77141242,938.85,936.54,2.6334802]
[1768400721172,0.77141242,938.84,936.54,2.6334802]
[1768400721372,0.77141242,938.83,936.54,2.6334802]
[1768400721569,0.77141242,938.82,936.54,2.6334802]
[1768400721770,0.77141242,938.81,936.54,2.6334802]
[1768400721973,0.77141242,938.8,936.54,2.6334802]
[1768400722269,0.77141242,938.79,936.54,2.6334802]
[1768400722570,0.77141242,938.78,936.54,2.6334802]
[1768400722775,0.77141242,938.77,936.54,2.6334802]
[1768400722977,0.77141242,938.76,936.54,2.6334802]
[1768400723177,1.713,938.95,936.54,2.6334802]
[1768400723371,0.77124094,938.94,936.54,2.6334802]
[1768400723572,0.77124094,938.93,936.58,2.6334802]
[1768400723776,0.77124094,938.92,936.58,2.6334802]
[1768400723973,0.77124094,938.91,936.58,2.6334802]
[1768400724176,0.77124094,938.9,936.6,2.6334802]
[1768400724376,0.77124094,938.89,936.6,2.6334802]
[1768400724577,0.77124094,938.88,936.6,2.6334802]
[1768400724777,0.77124094,938.87,936.6,2.6334802]
[1768400724974,0.77124094,938.86,936.6,2.6334802]
[1768400725180,0.77124094,938.85,936.6,2.6334802]
[1768400725376,0.77124094,938.84,936.6,2.6334802]
[1768400725579,0.77124094,938.83,936.6,2.6334802]
[1768400725780,0.77124094,938.82,936.6,2.6334802]
[1768400725979,0.77124094,938.81,936.6,2.6334802]
[1768400726179,0.77124094,938.8,936.6,2.6334802]
[1768400726379,0.77124094,938.79,936.6,2.6334802]
[1768400726578,0.77124094,938.78,936.6,2.6334802]
[1768400726777,0.77124094,938.77,936.6,2.6334802]
[1768400726977,0.77124094,938.76,936.6,2.6334802]
[1768400727178,0.77124094,938.75,936.6,2.6334802]
[1768400727383,0.77124094,938.74,936.6,2.6334802]
[1768400727582,0.77124094,938.73,936.6,2.6334802]
[1768400727777,0.77124094,938.72,936.6,2.6334802]
[1768400727978,0.77124094,938.71,936.6,2.6334802]
[1768400728183,0.77124094,938.7,936.6,2.6334802]
[1768400728478,0.77124094,938.69,936.6,2.6334802]
[1768400728682,0.77124094,938.68,936.6,2.6334802]
[1768400728880,0.7712188,938.67,936.6,2.6334802]
[1768400729080,0.7712188,938.66,936.6,2.6334802]
[1768400729283,0.7712188,938.65,936.59,2.6334802]
[1768400729479,0.7712188,938.64,936.59,2.6334802]
[1768400729684,0.7712188,938.63,936.59,2.6334802]
[1768400729884,0.7712188,938.62,936.59,2.6334802]
[1768400730085,0.7712188,938.61,936.59,2.6334802]
[1768400730286,0.7712188,938.6,936.59,2.6334802]
[1768400730480,0.7712188,938.59,936.59,2.6334802]
[1768400730784,0.7712188,938.58,936.59,2.6334802]
[1768400730986,0.7712188,938.57,936.59,2.6334802]
[1768400731185,0.7712188,938.56,936.59,2.6334802]
[1768400731383,0.7712188,938.55,936.59,2.6334802]
[1768400731686,0.7712188,938.54,936.59,2.6334802]
[1768400731883,0.7712188,938.53,936.59,2.6334802]
[1768400732085,0.7712188,938.52,936.59,2.6334802]
[1768400732285,0.7712188,938.51,936.59,2.6334802]
[1768400732486,0.7712188,938.5,936.6,2.6334802]
[1768400732682,0.7712188,938.49,936.6,2.6334802]
[1768400732886,1.713,938.95,936.6,2.6334802]
[1768400732887,0.7712188,938.48,936.6,2.6334802]
[1768400733386,0.7712188,938.47,936.61,2.6334802]
[1768400733586,0.7712188,938.46,936.61,2.6334802]
[1768400733884,0.18547141,939.14,936.59,2.6334802]
[1768400733885,0.7712188,938.45,936.59,2.6334802]
[1768400734183,0.7712188,938.44,936.59,2.6334802]
[1768400734386,0.7712188,938.43,936.6,2.6334802]
[1768400734686,0.7712188,938.42,936.6,2.6334802]
[1768400734886,0.7712188,938.41,936.6,2.6334802]
[1768400735084,0.7712188,938.4,936.6,2.6334802]
[1768400735283,0.77178705,938.39,936.6,2.6334802]
[1768400735489,0.77178705,938.38,936.6,2.6334802]
[1768400735790,0.77178705,938.37,936.6,2.6334802]
[1768400735984,0.77178705,938.36,936.62,2.6334802]
[1768400736288,0.77178705,938.35,936.62,2.6334802]
[1768400736485,0.77178705,938.34,936.66,2.6334802]
[1768400736686,0.77178705,938.33,936.66,2.6334802]
[1768400736886,0.77178705,938.32,936.66,2.6334802]
[1768400737091,0.77178705,938.31,936.66,2.6334802]
[1768400737386,0.77178705,938.3,936.66,2.6334802]
[1768400737590,0.77178705,938.29,936.72,2.6334802]
[1768400737787,0.77178705,938.28,936.72,2.6334802]
[1768400737990,0.77178705,938.27,936.72,2.6334802]
[1768400738189,0.77178705,938.26,936.72,2.6334802]
[1768400738386,0.77178705,938.25,936.72,2.6334802]
[1768400738589,0.77178705,938.24,936.73,2.6334802]
[1768400738787,0.77178705,938.23,936.73,2.6334802]
[1768400739094,0.77178705,938.22,936.73,2.6334802]
[1768400739390,0.77178705,938.21,936.73,2.6334802]
[1768400739591,0.77178705,938.2,936.74,2.6334802]
[1768400739788,2.094,938.35,936.74,2.6334802]
[1768400739789,0.77178705,938.19,936.74,2.6334802]
[1768400739991,0.77178705,938.18,936.74,2.6334802]
[1768400740188,0.77178705,938.17,936.74,2.6334802]
[1768400740390,0.77178705,938.16,936.74,2.6334802]
[1768400740591,0.77178705,938.15,936.74,2.6334802]
[1768400740886,0.77178705,938.14,936.74,2.6334802]
[1768400741087,0.77178705,938.13,936.74,2.6334802]
[1768400741391,0.77178705,938.12,936.74,2.6334802]
[1768400741588,0.77178705,938.11,936.74,2.6334802]
[1768400741793,0.77178705,938.1,936.73,2.6334802]
[1768400742089,0.77178705,938.09,936.73,2.6334802]
[1768400742292,0.77178705,938.08,936.71,2.6334802]
[1768400742493,0.77178705,938.07,936.71,2.6334802]
[1768400742688,0.77178705,938.06,936.72,2.6334802]
[1768400742890,0.77178705,938.05,936.72,2.6334802]
[1768400743193,2.094,938.35,936.72,2.6334802]
[1768400743194,0.77178705,938.04,936.72,2.6334802]
[1768400743390,2.094,938.35,936.72,2.6334802]
[1768400743391,0.77178705,938.03,936.72,2.6334802]
[1768400743590,0.77178705,938.02,936.72,2.6334802]
[1768400743794,0.77178705,938.01,936.73,2.6334802]
[1768400743994,0.77178705,938.0,936.73,2.6334802]
[1768400744188,0.77178705,937.99,936.73,2.6334802]
[1768400744394,0.77178705,937.98,936.74,2.6334802]
[1768400744590,0.77178705,937.97,936.74,2.6334802]
[1768400744792,0.77178705,937.96,936.5,2.6334802]
[1768400745094,0.77178705,937.95,936.5,2.6334802]
[1768400745295,0.77178705,937.94,936.5,2.6334802]
[1768400745495,0.77178705,937.93,936.6,2.6334802]
[1768400745695,0.77178705,937.92,936.6,2.6334802]
[1768400745896,0.77178705,937.91,936.6,2.6334802]
[1768400746196,0.77178705,937.9,936.6,2.6334802]
[1768400746396,0.77178705,937.89,936.6,2.6334802]
[1768400746596,0.77178705,937.88,936.6,2.6334802]
[1768400746797,0.77178705,937.87,936.6,2.6334802]
[1768400746994,0.77178705,937.86,936.6,2.6334802]
[1768400747191,0.77178705,937.85,936.6,2.6334802]
[1768400747497,0.77178705,937.84,936.6,2.6334802]
[1768400747796,0.77178705,937.83,936.6,2.6334802]
[1768400747993,0.77178705,937.82,936.6,2.6334802]
[1768400748297,0.77178705,937.81,936.6,2.6334802]
[1768400748596,0.77178705,937.8,936.6,2.6334802]
[1768400748794,0.77178705,937.79,936.6,2.6334802]
[1768400748994,0.77178705,937.78,936.6,2.6334802]
[1768400749195,0.77178705,937.77,936.6,2.6334802]
[1768400749396,0.77178705,937.76,936.6,2.6334802]
[1768400749596,0.77178705,937.75,936.6,2.6334802]
[1768400749797,0.77178705,937.74,936.6,2.6334802]
[1768400749997,0.77178705,937.73,936.6,2.6334802]
[1768400750193,2.094,938.35,936.6,2.6334802]
[1768400750394,0.77302262,938.34,936.6,2.6334802]
[1768400750594,0.77302262,938.33,936.6,2.6334802]
[1768400750794,0.77302262,938.32,936.6,2.6334802]
[1768400750998,0.77302262,938.31,936.6,2.6334802]
[1768400751192,0.77302262,938.3,936.6,2.6334802]
[1768400751494,0.77302262,938.29,936.57,2.6334802]
[1768400751696,0.77302262,938.28,936.57,2.6334802]
[1768400751894,0.77302262,938.27,936.57,2.6334802]
[1768400752094,0.77302262,938.26,936.57,2.6334802]
[1768400752392,0.77302262,938.25,936.57,2.6334802]
[1768400752598,0.77302262,938.24,936.57,2.6334802]
[1768400752894,0.77302262,938.23,936.57,2.6334802]
[1768400753099,0.77302262,938.22,936.57,2.6334802]
[1768400753300,0.77302262,938.21,936.56,2.6334802]
[1768400753599,0.77302262,938.2,936.56,2.6334802]
[1768400753800,0.77302262,938.19,936.56,2.6334802]
[1768400754096,0.77302262,938.18,936.56,2.6334802]
[1768400754296,0.77302262,938.17,936.48,2.6334802]
[1768400754598,0.77302262,938.16,936.48,2.6334802]
[1768400754797,0.77302262,938.15,936.48,2.6334802]
[1768400755098,0.77302262,938.14,936.48,2.6334802]
[1768400755302,0.77302262,938.13,936.48,2.6334802]
[1768400755498,0.77302262,938.12,936.48,2.6334802]
[1768400755702,0.77302262,938.11,936.48,2.6334802]
[1768400755902,0.77302262,938.1,936.48,2.6334802]
[1768400756101,0.77302262,938.09,936.48,2.6334802]
[1768400756300,0.77302262,938.08,936.48,2.6334802]
[1768400756501,0.77302262,938.07,936.48,2.6334802]
[1768400756703,0.77302262,938.06,936.48,2.6334802]
[1768400756904,0.77302262,938.05,936.47,2.6334802]
[1768400757101,0.77302262,938.04,936.47,2.6334802]
[1768400757304,0.77302262,938.03,936.47,2.6334802]
[1768400757503,0.77302262,938.02,936.47,2.6334802]
[1768400757706,0.77302262,938.01,936.47,2.6334802]
[1768400758004,0.77302262,938.0,936.47,2.6334802]
[1768400758207,0.77302262,937.99,936.47,2.6334802]
[1768400758407,0.77302262,937.98,936.47,2.6334802]
[1768400758605,0.77302262,937.97,936.47,2.6334802]
[1768400758808,0.77302262,937.96,936.46,2.6334802]
[1768400759004,0.77302262,937.95,936.46,2.6334802]
[1768400759209,0.77302262,937.94,936.46,2.6334802]
[1768400759409,0.77302262,937.93,936.39,2.6334802]
[1768400759710,0.77302262,937.92,936.39,2.6334802]
[1768400759905,0.77302262,937.91,936.39,2.6334802]
[1768400760108,0.77302262,937.9,936.39,2.6334802]
[1768400760308,0.77302262,937.89,936.36,2.6334802]
[1768400760505,0.77243605,937.88,936.36,2.6334802]
[1768400760709,0.77243605,937.87,936.36,2.6334802]
[1768400760906,0.77243605,937.86,936.35,2.6334802]
[1768400761106,0.77243605,937.85,936.35,2.6334802]
[1768400761406,0.77243605,937.85,936.2,0.18547931]
[1768400761407,0.77243605,937.84,936.34,2.6334802]
[1768400761606,0.77243605,937.83,936.34,2.6334802]
[1768400761805,0.77243605,937.82,936.34,2.6334802]
[1768400762106,0.77243605,937.81,936.34,2.6334802]
[1768400762310,0.77243605,937.8,936.34,2.6334802]
[1768400762510,0.77243605,937.79,936.33,2.6334802]
[1768400762710,0.77243605,937.78,936.33,2.6334802]
[1768400762905,0.77243605,937.77,936.33,2.6334802]
[1768400763106,0.77243605,937.76,936.35,2.6334802]
[1768400763308,0.77243605,937.75,936.35,2.6334802]
[1768400763507,0.77243605,937.74,936.48,2.6334802]
[1768400763707,0.77243605,937.73,936.48,2.6334802]
[1768400763905,0.77243605,937.72,936.48,2.6334802]
[1768400764106,2.041,938.18,936.48,2.6334802]
[1768400764407,0.77180928,938.17,936.48,2.6334802]
[1768400764710,0.77180928,938.16,936.48,2.6334802]
[1768400765007,0.77180928,938.15,936.48,2.6334802]
[1768400765211,0.77180928,938.14,936.48,2.6334802]
[1768400765406,0.77180928,938.13,936.48,2.6334802]
[1768400765610,0.77180928,938.12,936.48,2.6334802]
[1768400765811,0.77180928,938.11,936.48,2.6334802]
[1768400766008,0.77180928,938.1,936.48,2.6334802]
[1768400766310,0.77180928,938.09,936.48,2.6334802]
[1768400766511,0.77180928,938.08,936.48,2.6334802]
[1768400766709,0.77180928,938.07,936.48,2.6334802]
[1768400766912,0.77180928,938.06,936.48,2.6334802]
[1768400767109,0.77180928,938.05,936.48,2.6334802]
[1768400767310,0.77180928,938.04,936.48,2.6334802]
[1768400767510,0.77180928,938.03,936.48,2.6334802]
[1768400767716,0.77180928,938.02,936.48,2.6334802]
[1768400767911,0.77180928,938.01,936.48,2.6334802]
[1768400768110,0.77180928,938.0,936.48,2.6334802]
[1768400768311,0.77180928,937.99,936.48,2.6334802]
[1768400768510,0.77180928,937.98,936.48,2.6334802]
[1768400768715,0.77180928,937.97,936.48,2.6334802]
[1768400769010,0.77180928,937.96,936.48,2.6334802]
[1768400769216,0.77180928,937.95,936.48,2.6334802]
[1768400769410,0.77180928,937.94,936.48,2.6334802]
[1768400769611,0.77180928,937.93,936.48,2.6334802]
[1768400769814,0.77180928,937.92,936.48,2.6334802]
[1768400770113,0.77180928,937.91,936.48,2.6334802]
[1768400770310,0.77180928,937.9,936.46,2.6334802]
[1768400770515,0.77180928,937.89,936.46,2.6334802]
[1768400770816,0.77180928,937.88,936.46,2.6334802]
[1768400771016,0.77180928,937.87,936.46,2.6334802]
[1768400771316,0.77180928,937.86,936.37,2.6334802]
[1768400771516,0.77180928,937.85,936.37,2.6334802]
[1768400771717,0.77180928,937.84,936.37,2.6334802]
[1768400771917,0.77180928,937.83,936.37,2.6334802]
[1768400772117,0.77180928,937.82,936.37,2.6334802]
[1768400772319,2.091,937.89,936.36,2.6334802]
[1768400772712,2.091,937.89,936.35,2.6334802]
[1768400773417,0.77179105,937.88,936.25,2.6334802]
[1768400773919,0.77179105,937.88,936.22,2.6334802]
[1768400774416,2.091,937.89,936.22,2.6334802]
[1768400774816,2.091,937.89,936.23,2.6334802]
[1768400775216,0.77176847,937.88,936.23,2.6334802]
[1768400775420,0.77176847,937.88,936.24,2.6334802]
[1768400775621,0.77176847,937.87,936.24,2.6334802]
[1768400775920,0.77176847,937.86,936.24,2.6334802]
[1768400776120,0.77176847,937.85,936.24,2.6334802]
[1768400776420,0.77176847,937.84,936.27,2.6334802]
[1768400776620,0.77176847,937.83,936.27,2.6334802]
[1768400776819,0.77176847,937.82,936.27,2.6334802]
[1768400777021,0.77176847,937.81,936.27,2.6334802]
[1768400777321,0.77176847,937.8,936.27,2.6334802]
[1768400777622,0.77176847,937.79,936.25,2.6334802]
[1768400777818,0.77176847,937.78,936.25,2.6334802]
[1768400778018,0.77176847,937.77,936.2,2.81895951]
[1768400778321,0.77176847,937.76,936.2,2.81895951]
[1768400778619,0.77176847,937.75,936.2,0.18547931]
[1768400778820,0.77176847,937.74,936.2,0.18547931]